[Event "TUR-chT Superleague 2018"]
[Site "Ankara"]
[Date "2018.07.27"]
[Round "3"]
[White "Kilic, Efe Mert"]
[Black "Gulden, Egemen"]
[Result "0-1"]
[ECO "B97"]
[WhiteElo "2317"]
[BlackElo "2085"]
[Annotator "NA"]
[PlyCount "127"]
[EventDate "2018.07.25"]
[EventType "team-tourn"]
[EventCountry "TUR"]
[SourceTitle "playchess.com"]
[Source "ChessBase"]
[SourceQuality "1"]
[TimeControl "40/5400+30:1800+30"]

1. e4 {[%emt 0:00:30]} c5 {[%emt 0:01:00]} 2. Nf3 {[%emt 0:03:30]} d6 {[%emt 0:00:30]} 3. d4 {[%emt 0:00:30]} cxd4 {[%emt 0:00:00]} 4. Nxd4 {[%emt 0:00:30]} Nf6 {[%emt 0:00:00]} 5. Nc3 {[%emt 0:00:30]} a6 {[%emt 0:00:30]} 6. Bg5 {[%emt 0:03:30]} e6 {[%emt 0:00:00]} 7. f4 {[%emt 0:02:30]} Qb6 {[%emt 0:01:00]} 8. Nb3 {[%emt 0:07:30]} Nbd7 {[%emt 0:02:30]} 9. Qf3 {[%emt 0:00:30]} Be7 {[%emt 0:03:30]} 10. O-O-O {[%emt 0:00:30]} Qc7 {[%emt 0:03:30]} 11. g4 {[%emt 0:12:30]} b5 {[%emt 0:06:30]} 12. a3 {[%emt 0:09:30]} Bb7 {[%emt 0:01:30]} 13. Bg2 {[%emt 0:00:30]} Rc8 {[%emt 0:04:30]} 14. Qe2 {[%emt 0:01:30]} h6 {[%emt 0:09:30]} 15. Bh4 {[%emt 0:02:30]} Nxe4 {[%emt 0:14:30]} 16. Bxe4 {[%emt 0:02:30]} Bxh4 {[%emt 0:01:30]} 17. Bxb7 {[%emt 0:01:30]} Qxb7 {[%emt 0:00:30]} 18. g5 {[%emt 0:00:30]} Rxc3 {[%emt 0:09:30]} 19. bxc3 {[%emt 0:00:30]} hxg5 {[%emt 0:00:00]} 20. Nd4 {[%emt 0:04:30]} Qd5 {[%emt 0:11:00]} 21. Qf3 {[%emt 0:07:30]} Qxf3 {[%emt 0:17:24]} 22. Nxf3 {[%emt 0:00:00]} d5 {[%emt 0:08:31]} 23. fxg5 {[%emt 0:01:00]} Ke7 {[%emt 0:00:29]} 24. Rdf1 {[%emt 0:17:53]} f6 {[%emt 0:02:25]} 25. Rhg1 {[%emt 0:00:30]} Rh5 {[%emt 0:00:22]} 26. Rg4 {[%emt 0:03:37]} Bxg5+ {[%emt 0:00:20]} 27. Nxg5 {[%emt 0:00:10]} fxg5 {[%emt 0:00:14]} 28. Kb2 {[%emt 0:02:48]} Ne5 {[%emt 0:00:57]} 29. Rg2 {[%emt 0:00:46]} Nc4+ {[%emt 0:00:42]} 30. Kb3 {[%emt 0:00:30]} Ne3 {[%emt 0:00:30]} 31. Rff2 {[%emt 0:00:30]} Nxg2 {[%emt 0:00:30]} 32. Rxg2 {[%emt 0:00:00]} Kf6 {[%emt 0:01:25]} 33. Kb4 {[%emt 0:00:00]} Rh4+ {[%emt 0:00:30]} 34. Kc5 {[%emt 0:00:00]} Rc4+ {[%emt 0:00:27]} 35. Kd6 {[%emt 0:00:00]} Rxc3 {[%emt 0:00:17]} 36. Rf2+ {[%emt 0:00:05]} Kg6 {[%emt 0:00:30]} 37. Kxe6 {[%emt 0:00:00]} Rxa3 {[%emt 0:00:24]} 38. Kxd5 {[%emt 0:00:00]} Rc3 {[%emt 0:00:15]} 39. Re2 {[%emt 0:01:47]} Kh5 {[%emt 0:00:21]} 40. Ke6 {[%emt 0:00:00]} b4 {[%emt 0:01:27]} 41. Kf7 {[%emt 0:03:24]} Rc7+ {[%emt 0:00:30]} 42. Ke6 {[%emt 0:00:30]} a5 {[%emt 0:00:00]} 43. Kf5 {[%emt 0:00:30]} Rc5+ {[%emt 0:00:00]} 44. Ke6 {[%emt 0:00:30]} a4 {[%emt 0:00:30]} 45. Kd6 {[%emt 0:00:30]} Rc3 {[%emt 0:00:30]} 46. Re4 {[%emt 0:00:00]} Rxc2 {[%emt 0:02:30]} 47. Rxb4 {[%emt 0:00:00]} a3 {[%emt 0:00:30]} 48. Ra4 {[%emt 0:00:00]} Rxh2 {[%emt 0:00:30]} 49. Rxa3 {[%emt 0:00:00]} Re2 {[%emt 0:00:30]} 50. Rh3+ {[%emt 0:00:30]} Kg6 {[%emt 0:00:30]} 51. Rg3 {[%emt 0:00:00]} Re4 {[%emt 0:00:30]} 52. Kd5 {[%emt 0:00:00]} Ra4 {[%emt 0:00:00]} 53. Ke5 {[%emt 0:00:30]} g4 {[%emt 0:00:00]} 54. Rg1 {[%emt 0:00:30]} Kg5 {[%emt 0:00:30]} 55. Rg2 {[%emt 0:00:30]} Ra3 {[%emt 0:00:30]} 56. Ke4 {[%emt 0:00:30]} g3 {[%emt 0:00:00]} 57. Rb2 {[%emt 0:00:30]} Kg4 {[%emt 0:00:00]} 58. Rc2 {[%emt 0:00:30]} g5 {[%emt 0:00:30]} 59. Rb2 {[%emt 0:00:30]} Rf3 {[%emt 0:00:30]} 60. Rg2 {[%emt 0:00:30]} Rf2 {[%emt 0:00:30]} 61. Rg1 {[%emt 0:00:30]} g2 {[%emt 0:00:30]} 62. Ke3 {[%emt 0:00:00]} Kg3 {[%emt 0:00:00]} 63. Ra1 {[%emt 0:00:00]} Rf1 {[%emt 0:00:00]} 64. Kd4 {[%emt 0:00:30]} 0-1

[Event "TUR-chT Superleague 2018"]
[Site "Ankara"]
[Date "2018.07.27"]
[Round "3"]
[White "Ozen, Bahadir"]
[Black "Yaran, Siar"]
[Result "0-1"]
[ECO "C54"]
[WhiteElo "2317"]
[BlackElo "2261"]
[Annotator "NA"]
[PlyCount "98"]
[EventDate "2018.07.25"]
[EventType "team-tourn"]
[EventCountry "TUR"]
[SourceTitle "playchess.com"]
[Source "ChessBase"]
[SourceQuality "1"]
[TimeControl "40/5400+30:1800+30"]

1. e4 {[%emt 0:00:30]} e5 {[%emt 0:02:00]} 2. Nf3 {[%emt 0:00:00]} Nc6 {[%emt 0:00:00]} 3. Bc4 {[%emt 0:00:00]} Bc5 {[%emt 0:00:00]} 4. c3 {[%emt 0:00:30]} Nf6 {[%emt 0:00:30]} 5. d3 {[%emt 0:00:30]} a6 {[%emt 0:00:30]} 6. a4 {[%emt 0:00:30]} O-O {[%emt 0:02:30]} 7. Bg5 {[%emt 0:00:30]} h6 {[%emt 0:03:30]} 8. Bh4 {[%emt 0:01:30]} Be7 {[%emt 0:00:00]} 9. O-O {[%emt 0:03:30]} d6 {[%emt 0:13:00]} 10. Nbd2 {[%emt 0:05:30]} Nh5 11. Bg3 {[%emt 0:03:30]} Nxg3 {[%emt 0:08:00]} 12. hxg3 {[%emt 0:00:30]} Kh8 {[%emt 0:14:30]} 13. Re1 {[%emt 0:02:30]} f5 {[%emt 0:01:30]} 14. Nf1 {[%emt 0:01:30]} f4 {[%emt 0:08:30]} 15. gxf4 {[%emt 0:00:30]} exf4 {[%emt 0:01:30]} 16. d4 {[%emt 0:01:30]} g5 {[%emt 0:01:30]} 17. N3h2 {[%emt 0:02:30]} Bf6 {[%emt 0:07:30]} 18. Be2 {[%emt 0:01:30]} Bd7 {[%emt 0:01:30]} 19. Nd2 {[%emt 0:01:30]} Bg7 {[%emt 0:01:30]} 20. a5 {[%emt 0:03:30]} Be8 {[%emt 0:02:30]} 21. Bh5 {[%emt 0:12:30]} Qd7 {[%emt 0:02:30]} 22. Qf3 {[%emt 0:06:30]} Bf7 {[%emt 0:00:30]} 23. Kh1 {[%emt 0:09:30]} Qe8 {[%emt 0:00:30]} 24. Bxf7 {[%emt 0:00:30]} Qxf7 {[%emt 0:00:30]} 25. g4 {[%emt 0:06:30]} fxg3 {[%emt 0:01:30]} 26. fxg3 {[%emt 0:01:30]} Qg6 {[%emt 0:01:30]} 27. Qe2 {[%emt 0:00:30]} Rae8 {[%emt 0:03:30]} 28. b4 {[%emt 0:00:30]} Na7 {[%emt 0:01:30]} 29. Rac1 {[%emt 0:02:30]} Nb5 {[%emt 0:00:30]} 30. Rf1 {[%emt 0:02:30]} Rxf1+ {[%emt 0:01:30]} 31. Nhxf1 {[%emt 0:01:30]} c5 {[%emt 0:00:30]} 32. bxc5 {[%emt 0:01:30]} dxc5 {[%emt 0:00:00]} 33. dxc5 {[%emt 0:00:00]} Nxc3 {[%emt 0:00:00]} 34. Qf3 {[%emt 0:01:00]} Nxe4 {[%emt 0:02:30]} 35. Re1 {[%emt 0:00:30]} g4 {[%emt 0:02:43]} 36. Qf4 {[%emt 0:00:30]} Qh5+ {[%emt 0:00:52]} 37. Nh2 {[%emt 0:00:30]} Nxg3+ {[%emt 0:01:49]} 38. Qxg3 {[%emt 0:00:30]} Qd5+ {[%emt 0:00:00]} 39. Nhf3 {[%emt 0:02:30]} Rxe1+ {[%emt 0:00:03]} 40. Qxe1 {[%emt 0:00:00]} gxf3 {[%emt 0:00:33]} 41. Qe8+ {[%emt 0:01:00]} Kh7 {[%emt 0:00:30]} 42. Qe4+ {[%emt 0:00:30]} Qxe4 {[%emt 0:00:30]} 43. Nxe4 {[%emt 0:00:30]} Bd4 {[%emt 0:00:00]} 44. Kh2 {[%emt 0:00:30]} Kg6 {[%emt 0:00:00]} 45. Kg3 {[%emt 0:00:00]} f2 {[%emt 0:00:30]} 46. Kg2 {[%emt 0:00:00]} h5 {[%emt 0:00:30]} 47. Nd6 {[%emt 0:00:30]} Bxc5 {[%emt 0:00:30]} 48. Nxb7 {[%emt 0:00:30]} Be7 {[%emt 0:00:30]} 49. Kxf2 {[%emt 0:00:30]} Kf5 {[%emt 0:00:00]} 0-1

[Event "TUR-chT Superleague 2018"]
[Site "Ankara"]
[Date "2018.07.27"]
[Round "3"]
[White "Keler, Faruk"]
[Black "Kinsiz, Onur"]
[Result "1-0"]
[ECO "C41"]
[WhiteElo "2286"]
[BlackElo "2204"]
[Annotator "NA"]
[PlyCount "71"]
[EventDate "2018.07.25"]
[EventType "team-tourn"]
[EventCountry "TUR"]
[SourceTitle "playchess.com"]
[Source "ChessBase"]
[SourceQuality "1"]
[TimeControl "40/5400+30:1800+30"]

1. e4 {[%emt 0:00:30]} d6 {[%emt 0:01:00]} 2. d4 {[%emt 0:00:30]} Nf6 {[%emt 0:00:30]} 3. Nc3 {[%emt 0:00:00]} e5 {[%emt 0:00:30]} 4. Nf3 {[%emt 0:00:00]} Nbd7 {[%emt 0:00:00]} 5. Bc4 {[%emt 0:00:30]} Be7 {[%emt 0:00:00]} 6. O-O {[%emt 0:00:00]} O-O {[%emt 0:00:30]} 7. Re1 {[%emt 0:00:00]} c6 {[%emt 0:00:30]} 8. a4 {[%emt 0:00:00]} b6 {[%emt 0:03:30]} 9. d5 {[%emt 0:00:00]} cxd5 {[%emt 0:01:30]} 10. Nxd5 {[%emt 0:01:30]} Bb7 {[%emt 0:00:00]} 11. b3 {[%emt 0:00:30]} Rc8 {[%emt 0:01:00]} 12. Nxe7+ {[%emt 0:00:30]} Qxe7 {[%emt 0:00:00]} 13. Nd2 {[%emt 0:00:30]} Nc5 {[%emt 0:12:00]} 14. f3 {[%emt 0:03:30]} Rfd8 {[%emt 0:21:30]} 15. Bb2 {[%emt 0:05:30]} Qd7 {[%emt 0:08:30]} 16. Bf1 {[%emt 0:10:30]} Nh5 {[%emt 0:08:30]} 17. Nc4 {[%emt 0:01:30]} Nf4 {[%emt 0:10:30]} 18. Ne3 {[%emt 0:09:30]} Ng6 {[%emt 0:05:30]} 19. Bc4 {[%emt 0:09:30]} Nf4 {[%emt 0:09:15]} 20. Qd2 {[%emt 0:09:30]} a6 {[%emt 0:02:06]} 21. Qb4 {[%emt 0:05:30]} Qc7 {[%emt 0:01:39]} 22. Rad1 {[%emt 0:06:30]} Rb8 {[%emt 0:01:38]} 23. Rd2 {[%emt 0:03:30]} b5 {[%emt 0:02:16]} 24. axb5 {[%emt 0:00:30]} axb5 {[%emt 0:02:04]} 25. Bf1 {[%emt 0:01:30]} Ba8 {[%emt 0:07:20]} 26. Ra1 {[%emt 0:00:30]} Qb6 {[%emt 0:01:06]} 27. Qa5 {[%emt 0:00:30]} Qc6 {[%emt 0:00:23]} 28. Nf5 {[%emt 0:07:30]} Ng6 {[%emt 0:00:23]} 29. Bxe5 {[%emt 0:04:30]} Nxe4 {[%emt 0:00:34]} 30. fxe4 {[%emt 0:04:23]} Qxe4 {[%emt 0:00:04]} 31. Rxd6 {[%emt 0:05:00]} Re8 {[%emt 0:00:36]} 32. Rxg6 {[%emt 0:03:49]} Qxe5 {[%emt 0:00:42]} 33. Rxg7+ {[%emt 0:01:15]} Kh8 {[%emt 0:00:07]} 34. Rxf7 {[%emt 0:02:30]} Bd5 {[%emt 0:00:19]} 35. Re1 {[%emt 0:01:57]} Be4 {[%emt 0:01:25]} 36. Rxe4 {[%emt 0:01:22]} 1-0

[Event "TUR-chT Superleague 2018"]
[Site "Ankara"]
[Date "2018.07.27"]
[Round "3"]
[White "Tasdogen, Dincer"]
[Black "Can, Isik"]
[Result "1-0"]
[ECO "B18"]
[WhiteElo "2280"]
[BlackElo "2385"]
[Annotator "NA"]
[PlyCount "111"]
[EventDate "2018.07.25"]
[EventType "team-tourn"]
[EventCountry "TUR"]
[SourceTitle "playchess.com"]
[Source "ChessBase"]
[SourceQuality "1"]
[TimeControl "40/5400+30:1800+30"]

1. e4 c6 2. d4 d5 3. Nc3 dxe4 4. Nxe4 Bf5 5. Ng3 Bg6 6. h4 h6 7. f4 e6 8. h5 Bh7 9. Nf3 Nf6 10. Bd3 Bxd3 11. Qxd3 Bd6 12. Bd2 Nbd7 13. O-O-O O-O 14. Ne4 Nxe4 15. Qxe4 Nf6 16. Qe2 Qc7 17. Ne5 c5 18. dxc5 Qxc5 19. g4 Rac8 20. c3 Qd5 21. Kb1 Qe4+ 22. Qxe4 Nxe4 23. Be3 b6 24. Kc2 Rfd8 25. Bd4 f6 26. Ng6 Kf7 27. Rhe1 Nc5 28. Bxc5 Rxc5 29. Rd3 Rc6 30. b4 b5 31. Red1 Ke8 32. Kb3 Bc7 33. a4 Rxd3 34. Rxd3 bxa4+ 35. Kxa4 e5 36. fxe5 fxe5 37. Kb3 e4 38. Re3 Re6 39. c4 Kf7 40. c5 Bh2 {[%emt 1:57:30]} 41. Re2 {[%emt 1:47:30]} Bg1 {[%emt 0:00:30]} 42. Nf4 {[%emt 0:02:30]} Re8 {[%emt 0:04:43]} 43. Ra2 {[%emt 0:13:28]} Ra8 {[%emt 0:02:56]} 44. Nh3 {[%emt 0:02:37]} Bd4 {[%emt 0:00:50]} 45. Kc4 {[%emt 0:00:23]} Bf6 {[%emt 0:00:26]} 46. b5 {[%emt 0:00:40]} Be7 {[%emt 0:12:08]} 47. Nf4 {[%emt 0:03:03]} e3 {[%emt 0:00:51]} 48. Nd5 {[%emt 0:03:34]} Bg5 {[%emt 0:02:50]} 49. b6 {[%emt 0:05:02]} e2 {[%emt 0:00:31]} 50. Rxe2 {[%emt 0:01:00]} axb6 {[%emt 0:00:04]} 51. cxb6 {[%emt 0:01:53]} Bh4 {[%emt 0:00:45]} 52. Re3 {[%emt 0:01:35]} Bd8 {[%emt 0:00:57]} 53. b7 {[%emt 0:00:42]} Rb8 {[%emt 0:00:30]} 54. Rb3 {[%emt 0:00:00]} Ke6 {[%emt 0:00:17]} 55. Kc5 {[%emt 0:00:00]} Kd7 {[%emt 0:00:30]} 56. Nb6+ {[%emt 0:00:00]} 1-0

[Event "TUR-chT Superleague 2018"]
[Site "Ankara"]
[Date "2018.07.27"]
[Round "3"]
[White "Uzumcu, Ahmet Utku"]
[Black "Gurel, Ediz"]
[Result "1-0"]
[ECO "B40"]
[WhiteElo "2261"]
[BlackElo "1792"]
[Annotator "NA"]
[PlyCount "107"]
[EventDate "2018.07.25"]
[EventType "team-tourn"]
[EventCountry "TUR"]
[SourceTitle "playchess.com"]
[Source "ChessBase"]
[SourceQuality "1"]
[TimeControl "40/5400+30:1800+30"]

1. e4 {[%emt 0:00:30]} c5 {[%emt 0:01:00]} 2. Nf3 {[%emt 0:00:30]} e6 {[%emt 0:00:00]} 3. d4 {[%emt 0:00:30]} cxd4 {[%emt 0:00:00]} 4. Nxd4 {[%emt 0:00:00]} Nc6 {[%emt 0:00:30]} 5. Nxc6 {[%emt 0:01:00]} bxc6 {[%emt 0:00:30]} 6. Bd3 {[%emt 0:00:30]} Nf6 {[%emt 0:00:30]} 7. Nd2 {[%emt 0:02:30]} d5 {[%emt 0:00:30]} 8. Qe2 {[%emt 0:01:30]} Be7 {[%emt 0:02:30]} 9. O-O {[%emt 0:01:30]} O-O {[%emt 0:01:30]} 10. b3 {[%emt 0:02:30]} Bb4 {[%emt 0:04:30]} 11. e5 {[%emt 0:05:30]} Nd7 {[%emt 0:00:30]} 12. Bb2 {[%emt 0:01:30]} h6 {[%emt 0:01:30]} 13. Rad1 {[%emt 0:08:30]} Nc5 {[%emt 0:03:30]} 14. c3 {[%emt 0:07:30]} Nxd3 {[%emt 0:00:30]} 15. Qxd3 {[%emt 0:00:30]} Be7 {[%emt 0:02:30]} 16. Rfe1 {[%emt 0:00:30]} a5 {[%emt 0:01:30]} 17. Qg3 {[%emt 0:02:30]} a4 {[%emt 0:03:30]} 18. b4 {[%emt 0:01:30]} Ba6 {[%emt 0:02:30]} 19. a3 {[%emt 0:05:30]} Qb6 {[%emt 0:05:30]} 20. Nf3 {[%emt 0:02:30]} c5 {[%emt 0:01:30]} 21. Bc1 {[%emt 0:01:30]} Kh7 {[%emt 0:00:30]} 22. Be3 {[%emt 0:03:30]} Qc7 {[%emt 0:03:30]} 23. bxc5 {[%emt 0:17:30]} Bxc5 {[%emt 0:02:30]} 24. Bxc5 {[%emt 0:01:30]} Qxc5 {[%emt 0:00:30]} 25. Rd4 {[%emt 0:00:00]} f5 {[%emt 0:06:30]} 26. exf6 {[%emt 0:06:00]} Rxf6 {[%emt 0:00:30]} 27. Rxa4 {[%emt 0:02:30]} Ra7 {[%emt 0:04:30]} 28. Rh4 {[%emt 0:03:30]} Bc8 {[%emt 0:01:30]} 29. a4 {[%emt 0:04:05]} Rb7 {[%emt 0:03:30]} 30. Ne5 {[%emt 0:06:29]} Rb2 {[%emt 0:02:30]} 31. Ng4 {[%emt 0:03:32]} Rg6 {[%emt 0:00:30]} 32. Qd3 {[%emt 0:01:39]} Ba6 {[%emt 0:00:30]} 33. Qe3 {[%emt 0:02:56]} Qa3 {[%emt 0:04:30]} 34. h3 {[%emt 0:00:44]} Rc2 {[%emt 0:00:30]} 35. Nxh6 {[%emt 0:04:12]} gxh6 {[%emt 0:02:30]} 36. Qa7+ {[%emt 0:00:30]} Rg7 {[%emt 0:00:00]} 37. Qxa6 {[%emt 0:00:00]} Qf8 {[%emt 0:17:00]} 38. Qd3+ {[%emt 0:01:26]} Qf5 {[%emt 0:00:00]} 39. Qe3 {[%emt 0:00:14]} Rg6 {[%emt 0:01:00]} 40. Rf4 {[%emt 0:00:00]} Qg5 {[%emt 0:00:30]} 41. Rf7+ {[%emt 0:11:43]} Kg8 {[%emt 0:00:30]} 42. Qxg5 {[%emt 0:00:30]} hxg5 {[%emt 0:00:00]} 43. Re7 {[%emt 0:00:30]} Rf6 {[%emt 0:00:00]} 44. f3 {[%emt 0:00:30]} Rxc3 {[%emt 0:00:30]} 45. R1xe6 {[%emt 0:00:30]} Rf7 {[%emt 0:01:30]} 46. Rxf7 {[%emt 0:04:19]} Kxf7 {[%emt 0:00:30]} 47. Re5 {[%emt 0:00:30]} d4 {[%emt 0:00:30]} 48. Rxg5 {[%emt 0:00:00]} Ke6 {[%emt 0:00:30]} 49. Kf2 {[%emt 0:00:25]} Rc2+ {[%emt 0:00:00]} 50. Ke1 {[%emt 0:00:22]} d3 {[%emt 0:00:30]} 51. Kd1 {[%emt 0:00:20]} Ra2 {[%emt 0:00:30]} 52. a5 {[%emt 0:00:32]} Kf6 {[%emt 0:01:00]} 53. h4 {[%emt 0:00:45]} Ra4 {[%emt 0:00:30]} 54. g3 {[%emt 0:00:49]} 1-0

[Event "TUR-chT Superleague 2018"]
[Site "Ankara"]
[Date "2018.07.27"]
[Round "3"]
[White "Kizilkaya, Mehmet"]
[Black "Yurtseven, Melih"]
[Result "0-1"]
[ECO "B08"]
[WhiteElo "2205"]
[BlackElo "2404"]
[Annotator "NA"]
[PlyCount "102"]
[EventDate "2018.07.25"]
[EventType "team-tourn"]
[EventCountry "TUR"]
[SourceTitle "playchess.com"]
[Source "ChessBase"]
[SourceQuality "1"]
[TimeControl "40/5400+30:1800+30"]

1. e4 g6 2. d4 Bg7 3. Nc3 c6 4. Nf3 d6 5. h3 b5 6. a3 a6 7. Be2 Nf6 8. O-O O-O 9. Bg5 h6 10. Bf4 Kh7 11. e5 dxe5 12. Nxe5 Be6 13. Bf3 Nd5 14. Nxd5 Bxd5 15. c3 Bxf3 16. Qxf3 Qd5 17. Qe2 Bxe5 18. dxe5 Qe6 19. Qd2 Nd7 20. Bxh6 Rfd8 21. Rfe1 Nc5 22. Qg5 Qc4 23. f3 Rd5 24. f4 Ne6 25. Qh4 Rd2 26. Bg5+ Kg8 27. Rad1 Rad8 28. Rxd2 Rxd2 29. Bh6 Qc5+ 30. Kh1 Qf2 31. Qxf2 Rxf2 32. f5 gxf5 33. Bc1 Rc2 34. Rf1 Nc5 35. Bg5 Ne4 36. Bh4 e6 37. Rd1 Rxb2 38. Rd8+ Kg7 39. Rc8 Rb3 40. Rxc6 Rxa3 41. Be7 Ra1+ 42. Kh2 a5 43. h4 Rc1 44. Ra6 a4 {[%emt 1:40:30]} 45. Ra5 {[%emt 2:01:30]} Rb1 {[%emt 0:00:30]} 46. Bb4 {[%emt 0:00:30]} Rb3 {[%emt 0:00:30]} 47. g3 {[%emt 0:00:30]} Rb2+ {[%emt 0:00:30]} 48. Kg1 {[%emt 0:01:30]} Nxg3 {[%emt 0:01:30]} 49. Rxb5 {[%emt 0:00:30]} a3 {[%emt 0:01:30]} 50. h5 {[%emt 0:01:03]} f4 {[%emt 0:01:30]} 51. c4 {[%emt 0:02:23]} f3 {[%emt 0:00:30]} 0-1

[Event "TUR-chT Superleague 2018"]
[Site "Ankara"]
[Date "2018.07.27"]
[Round "3"]
[White "Kamer, Kayra"]
[Black "Gunduz, Umut Erdem"]
[Result "1-0"]
[ECO "C49"]
[WhiteElo "2181"]
[BlackElo "2130"]
[Annotator "NA"]
[PlyCount "65"]
[EventDate "2018.07.25"]
[EventType "team-tourn"]
[EventCountry "TUR"]
[SourceTitle "playchess.com"]
[Source "ChessBase"]
[SourceQuality "1"]
[TimeControl "40/5400+30:1800+30"]

1. e4 {[%emt 0:00:30]} e5 {[%emt 0:01:00]} 2. Nf3 {[%emt 0:00:30]} Nc6 {[%emt 0:00:30]} 3. Nc3 {[%emt 0:00:30]} Nf6 {[%emt 0:00:00]} 4. Bb5 {[%emt 0:00:00]} Bb4 {[%emt 0:00:00]} 5. O-O {[%emt 0:00:00]} O-O {[%emt 0:00:30]} 6. d3 {[%emt 0:03:30]} d6 {[%emt 0:00:30]} 7. Bg5 {[%emt 0:00:30]} Ne7 {[%emt 0:00:30]} 8. Ne2 {[%emt 0:04:30]} c6 {[%emt 0:09:30]} 9. Ba4 {[%emt 0:00:00]} Ng6 {[%emt 0:03:30]} 10. c3 {[%emt 0:02:00]} Ba5 {[%emt 0:02:30]} 11. Nh4 {[%emt 0:00:30]} h6 {[%emt 0:09:30]} 12. Nxg6 {[%emt 0:03:30]} fxg6 {[%emt 0:00:00]} 13. Bxf6 {[%emt 0:06:30]} Qxf6 {[%emt 0:04:00]} 14. d4 {[%emt 0:00:30]} Kh7 {[%emt 0:11:30]} 15. Qd3 {[%emt 0:05:30]} Bb6 {[%emt 0:04:30]} 16. Kh1 {[%emt 0:07:30]} Qh4 {[%emt 0:09:30]} 17. g3 {[%emt 0:00:00]} Qe7 {[%emt 0:09:30]} 18. f4 {[%emt 0:01:00]} exd4 {[%emt 0:02:30]} 19. Nxd4 {[%emt 0:10:30]} Bh3 {[%emt 0:16:40]} 20. Rfe1 {[%emt 0:00:00]} Rad8 {[%emt 0:05:42]} 21. Bc2 {[%emt 0:00:00]} Qf7 {[%emt 0:02:12]} 22. Nf3 {[%emt 0:04:30]} Bg4 {[%emt 0:06:34]} 23. Nh4 {[%emt 0:00:00]} Kh8 {[%emt 0:00:36]} 24. e5 {[%emt 0:02:00]} dxe5 {[%emt 0:00:39]} 25. Qxg6 {[%emt 0:00:30]} Qxg6 {[%emt 0:00:39]} 26. Nxg6+ {[%emt 0:00:30]} Kg8 {[%emt 0:00:25]} 27. Bb3+ {[%emt 0:00:00]} Kh7 {[%emt 0:00:29]} 28. Nxf8+ {[%emt 0:01:00]} Rxf8 {[%emt 0:00:01]} 29. Bd1 {[%emt 0:01:30]} Bxd1 {[%emt 0:01:19]} 30. Raxd1 {[%emt 0:00:30]} exf4 {[%emt 0:00:04]} 31. gxf4 {[%emt 0:00:00]} Rxf4 {[%emt 0:00:59]} 32. Rd7 {[%emt 0:00:00]} Rf2 {[%emt 0:00:21]} 33. Rg1 {[%emt 0:00:30]} 1-0

[Event "TUR-chT Superleague 2018"]
[Site "Ankara"]
[Date "2018.07.27"]
[Round "3"]
[White "Tofan, Ibrahim"]
[Black "Karagollu, Ahmet"]
[Result "1-0"]
[ECO "A30"]
[WhiteElo "2169"]
[BlackElo "2127"]
[Annotator "NA"]
[PlyCount "155"]
[EventDate "2018.07.25"]
[EventType "team-tourn"]
[EventCountry "TUR"]
[SourceTitle "playchess.com"]
[Source "ChessBase"]
[SourceQuality "1"]
[TimeControl "40/5400+30:1800+30"]

1. Nf3 Nf6 2. c4 g6 3. b3 Bg7 4. Bb2 c5 5. g3 b6 6. Bg2 Bb7 7. O-O O-O 8. Nc3 d6 9. d4 cxd4 10. Nxd4 Bxg2 11. Kxg2 Qd7 12. e4 Nc6 13. Nxc6 Qxc6 14. Nd5 Nxd5 15. exd5 Qb7 16. Bxg7 Kxg7 17. Kg1 Kg8 18. Re1 Rac8 19. a4 a6 20. Qd4 Rc5 21. Qe3 Re8 22. Qh6 Rc7 23. Rad1 Rf8 24. Rd4 f6 25. Rde4 b5 26. axb5 axb5 27. Qe3 bxc4 28. bxc4 Rf7 29. h4 Qc8 30. Rc1 Qb7 31. h5 gxh5 32. Rh4 Qc8 33. Qe2 Rg7 34. Qxh5 Qf8 35. Qf5 Qc8 36. Qe4 Kh8 37. Kg2 Qe8 38. Rch1 Qf7 39. Qf5 Ra7 40. Qb1 Ra8 41. Qb7 Qg8 42. Qb1 Ra3 43. R1h3 Ra8 44. Rh6 Rc8 45. Qe4 Qf7 46. R3h4 Rb8 {[%emt 2:02:30]} 47. Qd4 {[%emt 1:41:30]} Qg8 {[%emt 0:00:30]} 48. Rh3 {[%emt 0:00:30]} Ra8 {[%emt 0:00:30]} 49. Qe4 {[%emt 0:03:30]} Ra4 {[%emt 0:01:30]} 50. Qc2 {[%emt 0:01:30]} Ra5 {[%emt 0:00:53]} 51. R6h4 {[%emt 0:01:30]} Rc5 {[%emt 0:00:41]} 52. Qd3 {[%emt 0:00:30]} Ra5 {[%emt 0:00:32]} 53. Rh1 {[%emt 0:00:00]} Ra2 {[%emt 0:01:04]} 54. Re1 {[%emt 0:01:00]} Qa8 {[%emt 0:02:08]} 55. Reh1 {[%emt 0:02:30]} Qg8 {[%emt 0:00:08]} 56. Qf3 {[%emt 0:01:30]} Qa8 {[%emt 0:02:15]} 57. Re1 {[%emt 0:00:30]} Ra3 {[%emt 0:00:59]} 58. Qf4 {[%emt 0:02:30]} Qg8 {[%emt 0:03:35]} 59. Rhh1 {[%emt 0:00:30]} Ra4 {[%emt 0:00:48]} 60. Re4 {[%emt 0:02:30]} Ra7 {[%emt 0:02:49]} 61. Rhe1 {[%emt 0:00:30]} Qd8 {[%emt 0:01:56]} 62. Qe3 {[%emt 0:01:30]} Rb7 {[%emt 0:00:35]} 63. Re6 {[%emt 0:00:30]} Qc7 {[%emt 0:01:57]} 64. Qf4 {[%emt 0:00:30]} Qd7 {[%emt 0:00:39]} 65. Ra1 {[%emt 0:01:30]} Ra7 {[%emt 0:01:31]} 66. Rae1 {[%emt 0:03:30]} Rc7 {[%emt 0:00:11]} 67. Qd4 {[%emt 0:01:30]} Qc8 {[%emt 0:00:55]} 68. R1e4 {[%emt 0:00:30]} Kg8 {[%emt 0:02:06]} 69. Qd3 {[%emt 0:02:30]} Qd7 {[%emt 0:01:08]} 70. Qe2 {[%emt 0:00:30]} Kf8 {[%emt 0:01:20]} 71. Qh5 {[%emt 0:01:30]} Rc8 {[%emt 0:00:30]} 72. Qf5 {[%emt 0:01:34]} Rd8 {[%emt 0:01:07]} 73. c5 {[%emt 0:04:18]} dxc5 {[%emt 0:00:30]} 74. d6 {[%emt 0:00:34]} exd6 {[%emt 0:01:13]} 75. Qxf6+ {[%emt 0:00:22]} Kg8 {[%emt 0:00:46]} 76. Re7 {[%emt 0:00:28]} Rxe7 {[%emt 0:00:41]} 77. Rxe7 {[%emt 0:00:34]} Qg4 {[%emt 0:00:26]} 78. Qf7+ {[%emt 0:00:04]} 1-0